bitfinex-derivatives/quotes_BTCF0:USTF0_20250324
["timestamp","ask_amount","ask_price","bid_price","bid_amount"]
[1742859653937,0.0034,87320.0,87319.0,1.9131688]
[1742859654233,0.0034,87320.0,87319.0,2.0236488]
[1742859658441,0.0034,87320.0,87319.0,1.9131688]
[1742859658641,0.0034,87320.0,87319.0,2.0236488]
[1742859659243,0.0034,87320.0,87319.0,1.9131688]
[1742859659442,0.0034,87320.0,87319.0,2.0236488]
[1742859662941,0.00017188,87325.0,87324.0,0.1145023]
[1742859663148,0.00017188,87325.0,87324.0,0.6256623]
[1742859663339,0.00017188,87325.0,87324.0,0.6916623]
[1742859664348,0.00017188,87325.0,87324.0,0.70308987]
[1742859664544,0.20567611,87335.0,87334.0,0.1144891]
[1742859664847,0.00112001,87335.0,87334.0,1.1568891]
[1742859665046,0.0345,87335.0,87334.0,1.2220891]
[1742859665749,0.0345,87335.0,87334.0,1.1116091]
[1742859665943,0.0345,87335.0,87334.0,1.2220491]
[1742859666144,0.0668,87335.0,87334.0,1.2220491]
[1742859666653,0.0678,87335.0,87334.0,1.2220491]
[1742859667939,0.0688,87335.0,87334.0,1.2220491]
[1742859668138,0.0365,87335.0,87334.0,1.2220491]
[1742859670734,0.002,87335.0,87334.0,1.2220491]
[1742859671139,0.002,87335.0,87334.0,1.1116091]
[1742859671437,0.002,87335.0,87334.0,1.2220491]
[1742859675744,0.002,87335.0,87334.0,1.1116091]
[1742859675946,0.002,87335.0,87334.0,1.2220491]
[1742859678650,0.068,87335.0,87334.0,1.2220491]
[1742859678951,0.1003,87335.0,87334.0,1.1116091]
[1742859679253,0.1003,87335.0,87334.0,1.2220491]
[1742859682648,0.068,87335.0,87334.0,1.2220491]
[1742859683852,0.035,87335.0,87334.0,1.2220491]
[1742859684052,0.035,87335.0,87334.0,1.1116091]
[1742859684251,0.035,87335.0,87334.0,1.2220091]
[1742859684758,0.002,87335.0,87334.0,1.2220091]
[1742859685151,0.002,87335.0,87334.0,1.3220091]
[1742859686158,0.002,87335.0,87334.0,1.1116091]
[1742859686460,0.2140878,87335.0,87334.0,1.1568091]
[1742859686653,0.0986,87335.0,87334.0,1.1568091]
[1742859686856,0.0986,87335.0,87334.0,1.1890091]
[1742859687057,0.0976,87335.0,87334.0,1.2229091]
[1742859688453,0.0976,87335.0,87334.0,1.1125091]
[1742859688659,0.0976,87335.0,87334.0,1.2229091]
[1742859690660,0.2120878,87335.0,87334.0,1.2229091]
[1742859691159,0.0976,87335.0,87334.0,1.2229091]
[1742859691361,0.0976,87335.0,87334.0,0.57112]
[1742859691564,0.1145009,87325.0,87324.0,0.12182757]
[1742859691864,0.1145049,87323.0,87322.0,0.1145038]
[1742859692052,0.1152249,87323.0,87322.0,0.2255838]
[1742859692253,0.1783249,87323.0,87322.0,0.1151838]
[1742859692460,0.057254,87320.0,87316.0,0.27469124]
[1742859692661,0.1145311,87302.0,87301.0,0.42090457]
[1742859692963,0.1145311,87302.0,87301.0,0.59991315]
[1742859692964,0.8361311,87302.0,87301.0,0.59991315]
[1742859693164,0.88446125,87302.0,87301.0,0.71444555]
[1742859693959,0.83725111,87302.0,87301.0,0.71444555]
[1742859694561,0.83725111,87302.0,87301.0,0.3052124]
[1742859694754,0.72272001,87302.0,87301.0,0.3052124]
[1742859695269,0.72272001,87302.0,87301.0,0.3669124]
[1742859695463,0.72472001,87302.0,87301.0,0.4773124]
[1742859695669,0.72572001,87302.0,87301.0,0.4773524]
[1742859696071,0.00412001,87302.0,87301.0,0.4773524]
[1742859696368,0.003,87302.0,87301.0,0.4773524]
[1742859696669,0.002,87302.0,87301.0,0.4773524]
[1742859697054,0.002,87302.0,87301.0,0.3669124]
[1742859697456,0.002,87302.0,87301.0,0.4773524]
[1742859697660,0.001,87302.0,87301.0,0.4803524]
[1742859698661,0.1155311,87302.0,87301.0,0.36582]
[1742859698961,0.11665111,87302.0,87301.0,0.36582]
[1742859699262,0.19833015,87302.0,87282.0,0.11044]
[1742859699456,0.1145547,87284.0,87283.0,0.0319]
[1742859699661,0.36204001,87284.0,87283.0,0.498396]
[1742859699861,0.36204001,87284.0,87283.0,0.288996]
[1742859700372,0.36204001,87284.0,87283.0,0.608996]
[1742859700671,0.47659471,87284.0,87283.0,0.611996]
[1742859700866,0.00017178,87292.0,87291.0,0.1145455]
[1742859701071,0.3608,87310.0,87300.0,0.1145337]
[1742859701267,0.41084,87301.0,87300.0,0.7556137]
[1742859702563,0.41084,87301.0,87300.0,0.4856137]
[1742859702768,0.41084,87301.0,87300.0,0.7056137]
[1742859703160,0.41184,87301.0,87300.0,0.7056137]
[1742859703359,0.41284,87301.0,87300.0,0.7056137]
[1742859704173,0.41184,87301.0,87300.0,0.4856137]
[1742859704372,0.00084,87301.0,87300.0,0.4906137]
[1742859704672,0.00084,87301.0,87300.0,0.5546137]
[1742859704971,0.00084,87301.0,87300.0,0.6646137]
[1742859705868,0.00084,87301.0,87300.0,0.5546137]
[1742859706073,0.00084,87301.0,87300.0,0.6446137]
[1742859706569,0.00084,87301.0,87300.0,0.6456137]
[1742859711773,0.00084,87301.0,87300.0,0.6446137]
[1742859712265,0.1153724,87301.0,87300.0,0.53008]
[1742859712575,0.1153724,87301.0,87300.0,0.6436137]
[1742859713271,0.1153724,87301.0,87300.0,0.2936137]
[1742859713477,0.1153724,87301.0,87300.0,0.17908]
[1742859713683,0.1153724,87301.0,87300.0,0.2936137]
[1742859714675,0.1153724,87301.0,87300.0,0.2916137]
[1742859714875,0.1153724,87301.0,87300.0,0.2936137]
[1742859715267,0.1153724,87301.0,87300.0,0.2916137]
[1742859715467,0.1153724,87301.0,87300.0,0.2926137]
[1742859715973,0.1153724,87301.0,87300.0,0.2916137]
[1742859716581,0.1153724,87301.0,87300.0,0.1811737]
[1742859716765,0.1153724,87301.0,87300.0,0.2916137]
[1742859717579,0.1153724,87301.0,87300.0,0.2906137]
[1742859717778,0.1153724,87301.0,87300.0,0.2916137]
[1742859718975,0.4761724,87301.0,87300.0,0.2916137]
[1742859720981,0.4761724,87301.0,87300.0,0.06664]
[1742859721286,0.61222413,87301.0,87300.0,0.06664]
[1742859723886,0.61222413,87301.0,87300.0,0.1811737]
[1742859725487,0.6466116,87301.0,87300.0,0.1811737]
[1742859725676,0.6948714,87301.0,87300.0,0.06664]
[1742859725986,0.6948714,87301.0,87300.0,0.066]
[1742859726188,0.6948714,87301.0,87300.0,0.0666]
[1742859726489,0.6948714,87301.0,87300.0,0.066]
[1742859726784,0.6948714,87301.0,87300.0,0.0666]
[1742859727377,1.0556714,87301.0,87300.0,0.0666]
[1742859727588,1.0556714,87301.0,87300.0,0.066]
[1742859729289,0.8852322,87301.0,87300.0,0.066]
[1742859729485,0.8852322,87301.0,87300.0,0.06664]
[1742859730580,0.8852322,87301.0,87300.0,0.1805337]
[1742859730981,0.8852322,87301.0,87300.0,0.19586647]
[1742859732993,0.8852322,87301.0,87300.0,0.19578647]
[1742859733688,0.4761724,87301.0,87300.0,0.44578647]
[1742859734388,0.4761724,87301.0,87300.0,0.19578647]
[1742859735599,0.4761724,87301.0,87300.0,0.28578647]
[1742859735790,0.4761724,87301.0,87300.0,0.19578647]
[1742859739700,0.36164,87301.0,87300.0,0.19578647]
[1742859739999,0.36164,87301.0,87300.0,0.41578647]
[1742859742695,0.36164,87301.0,87300.0,0.19578647]
[1742859742892,0.36164,87301.0,87300.0,0.28578647]
[1742859743295,0.36164,87301.0,87300.0,0.19578647]
[1742859743488,0.36164,87301.0,87300.0,0.30578647]
[1742859743803,0.36164,87301.0,87300.0,0.19578647]
[1742859750805,0.4761724,87301.0,87300.0,0.19578647]
[1742859752205,0.36164,87301.0,87300.0,0.19578647]
[1742859752403,0.00084,87301.0,87300.0,0.19578647]
[1742859753005,0.00084,87301.0,87300.0,0.30622647]
[1742859753207,0.1153724,87301.0,87300.0,0.30622647]
[1742859755004,0.00084,87301.0,87300.0,0.30622647]
[1742859756010,0.1153724,87301.0,87300.0,0.30622647]
[1742859757111,0.00084,87301.0,87300.0,0.30622647]
[1742859760303,0.1153724,87301.0,87300.0,0.30622647]
[1742859760711,0.00084,87301.0,87300.0,0.30622647]
[1742859760912,0.00084,87301.0,87300.0,0.57622647]
[1742859763318,0.05652408,87301.0,87300.0,0.57622647]
[1742859765417,0.05652408,87301.0,87283.0,0.75859098]
[1742859765418,0.51478388,87301.0,87283.0,0.75859098]
[1742859765605,0.4753547,87284.0,87283.0,0.27526657]
[1742859765806,0.47639471,87284.0,87283.0,0.27526657]
[1742859766315,0.54250253,87284.0,87283.0,0.27526657]
[1742859766518,0.55667621,87284.0,87283.0,0.27526657]
[1742859766816,0.55667621,87284.0,87283.0,0.115156]
[1742859767119,0.55667621,87284.0,87283.0,0.120156]
[1742859767716,0.54250253,87284.0,87283.0,0.125156]
[1742859768022,0.18170253,87284.0,87283.0,0.125156]
[1742859768217,0.57270253,87284.0,87283.0,0.125156]
[1742859768416,0.60410253,87284.0,87283.0,0.0106]
[1742859769017,0.60410253,87284.0,87283.0,0.0436]
[1742859770030,0.60410253,87284.0,87283.0,0.189756]
[1742859770216,0.60410253,87284.0,87283.0,0.0752]
[1742859770614,0.61838665,87284.0,87283.0,0.0752]
[1742859771612,0.61838665,87284.0,87283.0,0.0746]
[1742859772820,0.60410253,87284.0,87283.0,0.0746]
[1742859773822,0.60410253,87284.0,87279.0,0.0004583]
[1742859773823,0.0572793,87281.0,87275.0,0.00017178]
[1742859774027,0.1145718,87271.0,87270.0,0.0635]
[1742859774230,0.114581,87264.0,87260.0,0.11044]
[1742859774416,0.114581,87264.0,87254.0,0.1145933]
[1742859774417,0.47678101,87264.0,87254.0,0.1145933]
[1742859774613,0.47678101,87264.0,87256.0,0.1145909]
[1742859774926,0.47678101,87264.0,87258.0,0.1145885]
[1742859775127,0.56389541,87264.0,87258.0,0.2291769]
[1742859775324,0.56389541,87264.0,87259.0,0.1145871]
[1742859775628,0.56389541,87264.0,87263.0,0.00645838]
[1742859775818,0.57838187,87264.0,87263.0,0.00645838]
[1742859776516,0.56389541,87264.0,87263.0,0.00645838]
[1742859776717,0.56489541,87264.0,87263.0,0.01145838]
[1742859777523,0.56489541,87264.0,87263.0,0.10425838]
[1742859781422,0.56489541,87264.0,87263.0,0.10485838]
[1742859781623,0.56489541,87264.0,87263.0,0.10425838]
[1742859782021,0.62789541,87264.0,87263.0,0.10425838]
[1742859783032,0.62789541,87264.0,87263.0,0.10489838]
[1742859784530,0.47778101,87264.0,87263.0,0.21948068]
[1742859784727,0.47778101,87264.0,87263.0,0.21944068]
[1742859785027,0.56489541,87264.0,87263.0,0.10485838]
[1742859785229,0.62829541,87264.0,87263.0,0.10485838]
[1742859785625,0.62829541,87264.0,87263.0,0.21944068]
[1742859786335,0.56489541,87264.0,87263.0,0.21944068]
[1742859789031,0.59669541,87264.0,87263.0,0.21944068]
[1742859790121,0.56489541,87264.0,87263.0,0.21944068]
[1742859791336,0.59589541,87264.0,87263.0,0.21944068]
[1742859792238,0.56489541,87264.0,87263.0,0.21944068]
[1742859792536,0.54869166,87264.0,87263.0,0.21944068]
[1742859798740,0.46157726,87264.0,87263.0,0.21944068]
[1742859798938,0.46157726,87264.0,87263.0,0.32944068]
[1742859799540,0.31330001,87264.0,87263.0,0.48944068]
[1742859799734,0.17021529,87267.0,87266.0,0.1145784]
[1742859799930,0.17021529,87267.0,87266.0,0.3551784]
[1742859800239,0.1711753,87267.0,87266.0,0.4197784]
[1742859801441,0.1711753,87267.0,87266.0,0.4227784]
[1742859801744,0.1721753,87267.0,87266.0,0.5327784]
[1742859801936,0.1721753,87267.0,87266.0,0.4227784]
[1742859802145,0.00196001,87267.0,87266.0,0.4227784]
[1742859802945,0.00296001,87267.0,87266.0,0.6577784]
[1742859803135,0.002,87267.0,87266.0,0.6577784]
[1742859806040,0.002,87267.0,87266.0,0.4277784]
[1742859806244,0.00304001,87267.0,87266.0,0.4277784]
[1742859806450,0.002,87267.0,87266.0,0.4277784]
[1742859810942,0.1370749,87272.0,87271.0,0.1145718]
[1742859811143,0.1380749,87272.0,87271.0,0.8264518]
[1742859811345,0.1370749,87272.0,87271.0,0.8878518]
[1742859812350,0.00017188,87272.0,87271.0,0.8878518]
[1742859812551,0.00017188,87272.0,87271.0,0.8908518]
[1742859813250,0.00017188,87272.0,87271.0,0.8958518]
[1742859813749,0.00117188,87272.0,87271.0,0.8958518]
[1742859815646,0.00017188,87272.0,87271.0,0.8958518]
[1742859816249,0.1370749,87272.0,87271.0,0.8958518]
[1742859818349,0.13803491,87272.0,87271.0,0.8958518]
[1742859818548,0.13803491,87272.0,87271.0,0.8958118]
[1742859822758,0.00113189,87272.0,87271.0,0.8958118]
[1742859822958,0.00017188,87272.0,87271.0,0.8958118]
[1742859823462,0.00017188,87272.0,87271.0,1.0058118]
[1742859823758,0.00017188,87272.0,87271.0,0.8958118]
[1742859825360,0.00017188,87272.0,87271.0,0.9958118]
[1742859826980,0.17021529,87275.0,87271.0,0.9958118]
[1742859826981,0.17021529,87275.0,87274.0,0.1145679]
[1742859827182,0.1712553,87275.0,87274.0,0.5845679]
[1742859827379,0.1712553,87275.0,87274.0,0.6490079]
[1742859828178,0.1712553,87275.0,87274.0,0.6530079]
[1742859828878,0.1712553,87275.0,87274.0,0.6580079]
[1742859829476,0.00104001,87275.0,87274.0,0.6580079]
[1742859836584,0.17021529,87276.0,87275.0,0.1145665]
[1742859836784,0.1712553,87276.0,87275.0,0.3452465]
[1742859836987,0.1712553,87276.0,87275.0,0.4093465]
[1742859837584,0.1712553,87276.0,87275.0,0.5197465]
[1742859837781,0.1712553,87276.0,87275.0,0.5227465]
[1742859838887,0.1712553,87276.0,87275.0,0.5267465]
[1742859840091,0.2858205,87276.0,87275.0,0.5267465]
[1742859840284,0.00104001,87276.0,87275.0,0.5267465]
[1742859842093,0.11560521,87276.0,87275.0,0.5267465]
[1742859843394,0.00104001,87276.0,87275.0,0.5267465]
[1742859844594,0.1712553,87276.0,87275.0,0.5267465]
[1742859847389,0.2858205,87276.0,87275.0,0.5267465]
[1742859847588,0.1712553,87276.0,87275.0,0.5267465]
[1742859848194,0.11560521,87276.0,87275.0,0.5267465]
[1742859851190,0.14870521,87276.0,87275.0,0.5267465]
[1742859851591,0.14870521,87276.0,87275.0,0.4163465]
[1742859853697,0.14870521,87276.0,87275.0,0.5267065]
[1742859854402,0.14870521,87276.0,87275.0,0.5594065]
[1742859854607,0.14870521,87276.0,87275.0,0.5267065]
[1742859855510,0.35357696,87276.0,87275.0,0.5267065]
[1742859856303,0.35357696,87276.0,87275.0,0.54140336]
[1742859856907,0.38647696,87276.0,87275.0,0.43104336]
[1742859857205,0.74727696,87276.0,87275.0,0.02237686]
[1742859857401,0.74727696,87276.0,87275.0,0.02169686]
[1742859857706,0.74727696,87276.0,87275.0,0.0076]
[1742859858000,0.74727696,87276.0,87275.0,0.11796]
[1742859858001,0.54240521,87276.0,87275.0,0.11796]
[1742859858210,0.54240521,87276.0,87275.0,0.2325265]
[1742859858597,0.54240521,87276.0,87275.0,0.2958265]
[1742859859600,0.54240521,87276.0,87275.0,0.31061356]
[1742859860398,0.54240521,87276.0,87275.0,0.2958265]
[1742859861610,0.54240521,87276.0,87275.0,0.18126]
[1742859862304,0.61691451,87276.0,87275.0,0.14996]
[1742859862505,0.72559798,87276.0,87275.0,0.14996]
[1742859867503,0.72559798,87276.0,87275.0,0.15099758]
[1742859868214,0.72559798,87276.0,87275.0,0.18289758]
[1742859869917,0.72559798,87276.0,87275.0,0.29746408]
[1742859870706,0.72559798,87276.0,87275.0,0.18289758]
[1742859870907,0.72559798,87276.0,87275.0,0.29746408]
[1742859871109,0.72559798,87276.0,87275.0,0.18289758]
[1742859872113,0.72559798,87276.0,87275.0,0.18399465]
[1742859872704,0.65959798,87276.0,87275.0,0.29856115]
[1742859872909,0.00017171,87283.0,87282.0,0.1145574]
[1742859873212,0.11536771,87283.0,87282.0,0.46243205]
[1742859873612,0.11536771,87283.0,87282.0,0.47719001]
[1742859874018,0.00089171,87283.0,87282.0,0.46243205]
[1742859874321,0.00089171,87283.0,87282.0,0.46443205]
[1742859875012,0.00089171,87283.0,87282.0,0.46643205]
[1742859877711,0.00089171,87283.0,87282.0,0.46779423]
[1742859877912,0.11544771,87283.0,87282.0,0.46779423]
[1742859878216,0.00089171,87283.0,87282.0,0.46799827]
[1742859878922,0.00081171,87283.0,87282.0,0.46799827]
[1742859879617,0.00081171,87283.0,87282.0,0.56799827]
[1742859879923,0.00017171,87283.0,87282.0,0.46799827]
[1742859880321,0.00081171,87283.0,87282.0,0.55799827]
[1742859880514,0.00081171,87283.0,87282.0,0.46799827]
[1742859880910,0.00081171,87283.0,87282.0,0.57799827]
[1742859881119,0.00081171,87283.0,87282.0,0.46799827]
[1742859882325,0.00017171,87283.0,87282.0,0.46799827]
[1742859882526,0.00081171,87283.0,87282.0,0.46799827]
[1742859882826,0.00081171,87283.0,87282.0,0.57799827]
[1742859883726,0.00081171,87283.0,87282.0,0.5742974]
[1742859883925,0.00081171,87283.0,87282.0,0.94016223]
[1742859884430,0.00081171,87283.0,87282.0,0.94036449]
[1742859884628,0.170799,87289.0,87288.0,0.1145495]
[1742859884851,0.2049588,87295.0,87294.0,0.1145416]
[1742859885125,0.1537588,87295.0,87294.0,0.9760616]
[1742859885320,0.1537588,87295.0,87294.0,1.04562869]
[1742859885721,0.0004,87304.0,87303.0,0.1145298]
[1742859886021,0.00112,87304.0,87303.0,1.1163698]
[1742859886223,0.35869432,87317.0,87305.0,0.1145272]
[1742859886537,0.2390894,87306.0,87305.0,0.59929602]
[1742859886720,0.00060001,87306.0,87305.0,0.59929602]
[1742859886920,0.23848939,87311.0,87310.0,0.1145206]
[1742859887121,0.23940939,87311.0,87310.0,0.99930356]
[1742859887424,0.23940939,87311.0,87310.0,1.00457065]
[1742859888017,0.23940939,87311.0,87310.0,1.03757065]
[1742859888216,0.23940939,87311.0,87310.0,1.18079065]
[1742859888523,0.24440939,87311.0,87310.0,1.21449065]
[1742859888724,0.24840939,87311.0,87310.0,1.21449065]
[1742859889123,0.24840939,87311.0,87310.0,0.98449065]
[1742859889723,0.00992,87311.0,87310.0,0.98449065]
[1742859889932,0.009,87311.0,87310.0,0.98449065]
[1742859890125,0.009,87311.0,87310.0,0.98541819]
[1742859891022,0.009,87311.0,87310.0,1.07541819]
[1742859897930,0.009,87311.0,87310.0,0.98541819]
[1742859898327,0.07602,87311.0,87310.0,0.98541819]
[1742859898830,0.0751,87311.0,87310.0,0.98541819]
[1742859899031,0.07602,87311.0,87310.0,0.98541819]
[1742859899938,0.1905393,87311.0,87310.0,0.98541819]
[1742859900438,0.1905393,87311.0,87310.0,0.95251819]
[1742859900635,0.1905393,87311.0,87310.0,0.84219819]
[1742859900830,0.11378422,87311.0,87301.0,0.1145323]
[1742859901023,0.1145324,87302.0,87301.0,0.229702]
[1742859901225,0.1151724,87302.0,87301.0,0.293102]
[1742859901433,0.2095724,87302.0,87301.0,0.293102]
[1742859902239,0.2125724,87302.0,87301.0,0.293102]
[1742859902438,0.2145724,87302.0,87301.0,0.293102]
[1742859902623,0.2145724,87302.0,87301.0,0.30783135]
[1742859903637,0.114539,87296.0,87286.0,0.11028]
[1742859903830,0.476059,87296.0,87290.0,0.1145462]
[1742859904138,0.476059,87296.0,87282.0,0.32030954]
[1742859904139,0.114556,87283.0,87282.0,0.32030954]
[1742859904452,0.114556,87283.0,87282.0,0.32090954]
[1742859904626,0.00072,87283.0,87282.0,0.37818754]
[1742859904826,0.06442,87283.0,87282.0,0.44048754]
[1742859905025,0.06442,87283.0,87282.0,0.54048754]
[1742859905232,0.06442,87283.0,87282.0,0.3347354]
[1742859905431,0.00072,87283.0,87282.0,0.9155354]
[1742859905827,0.00072,87283.0,87282.0,0.9474354]
[1742859906034,0.00017188,87291.0,87290.0,0.1145469]
[1742859906233,0.00017188,87291.0,87290.0,1.0963869]
[1742859906427,0.00017188,87291.0,87290.0,1.1620869]
[1742859909738,0.0322,87305.0,87298.0,0.0572675]
[1742859909938,0.03280001,87305.0,87304.0,0.1145285]
[1742859910236,0.14732721,87305.0,87304.0,0.2152085]
[1742859910442,0.17952721,87305.0,87304.0,0.2152085]
[1742859911142,0.17952721,87305.0,87304.0,0.2469085]
[1742859911339,0.18152721,87305.0,87304.0,0.2469085]
[1742859911846,0.18152721,87305.0,87304.0,0.25990276]
[1742859912143,0.18552721,87305.0,87304.0,0.25990276]
[1742859913632,0.07100001,87305.0,87304.0,0.25990276]
[1742859913836,0.0704,87305.0,87304.0,0.25990276]
[1742859914146,0.07108,87305.0,87304.0,0.25990276]
[1742859915247,0.03888,87305.0,87304.0,0.25990276]
[1742859915437,0.006,87305.0,87304.0,0.49990276]
[1742859917249,0.1145109,87318.0,87316.0,0.1145128]
[1742859917440,0.1470714,87317.0,87316.0,0.4554728]
[1742859917635,0.2103714,87317.0,87316.0,0.4554728]
[1742859918346,0.2103714,87317.0,87316.0,0.5185728]
[1742859918846,0.2203714,87317.0,87316.0,0.5195728]
[1742859919948,0.2203714,87317.0,87316.0,0.53431285]
[1742859921550,0.2203714,87317.0,87316.0,0.30431285]
[1742859921852,0.2203714,87317.0,87316.0,0.19403285]
[1742859922048,0.2203714,87317.0,87316.0,0.30427285]
[1742859922745,0.2203714,87317.0,87316.0,0.52427285]
[1742859923346,0.2203714,87317.0,87316.0,0.5095328]
[1742859923851,0.2203714,87317.0,87316.0,0.2895328]
[1742859926344,0.2203714,87317.0,87316.0,0.1792928]
[1742859926545,0.2203714,87317.0,87316.0,0.2895328]
[1742859932355,0.1145154,87314.0,87313.0,0.1145155]
[1742859932560,0.1145272,87306.0,87305.0,0.1145271]
[1742859932751,0.1145272,87306.0,87305.0,0.2892671]
[1742859932951,0.25669891,87306.0,87305.0,0.11084]
[1742859933349,0.25669891,87306.0,87305.0,0.0006]
[1742859933751,0.25669891,87306.0,87305.0,0.1151272]
[1742859933953,0.25969891,87306.0,87305.0,0.1790272]
[1742859934858,0.26269891,87306.0,87305.0,0.1790272]
[1742859935451,0.26269891,87306.0,87305.0,0.19387622]
[1742859938357,0.26269891,87306.0,87305.0,0.07934902]
[1742859938954,0.26269891,87306.0,87305.0,0.19387622]
[1742859939854,0.2196872,87306.0,87305.0,0.40387622]
[1742859940050,0.1530872,87306.0,87305.0,0.40387622]
[1742859940256,0.1530872,87306.0,87305.0,0.19387622]
[1742859940461,0.1844872,87306.0,87305.0,0.19387622]
[1742859944360,0.1844872,87306.0,87305.0,0.07934902]
[1742859944559,0.1844872,87306.0,87305.0,0.19387622]
[1742859945367,0.22749891,87306.0,87305.0,0.12568902]
[1742859945666,0.22749891,87306.0,87305.0,0.11084]
[1742859946570,0.22749891,87306.0,87305.0,0.2576672]
[1742859946765,0.22749891,87306.0,87305.0,0.17584]
[1742859947160,0.22749891,87306.0,87305.0,0.1801272]
[1742859949070,0.22749891,87306.0,87305.0,0.1950066]
[1742859949757,0.22749891,87306.0,87305.0,0.1801272]
[1742859949962,0.22749891,87306.0,87305.0,0.0656]
[1742859950170,0.22749891,87306.0,87305.0,0.1801272]
[1742859956767,0.22749891,87306.0,87305.0,0.0656]
[1742859956974,0.22749891,87306.0,87305.0,0.07995729]
[1742859958067,0.22749891,87306.0,87305.0,0.19448449]
[1742859958274,0.22749891,87306.0,87305.0,0.19508449]
[1742859959170,0.22749891,87306.0,87305.0,0.08055729]
[1742859960765,0.22749891,87306.0,87305.0,0.19448449]
[1742859961077,0.22749891,87306.0,87305.0,0.08071729]
[1742859961879,0.22749891,87306.0,87305.0,0.19524449]
[1742859964370,0.22749891,87306.0,87305.0,0.21524449]
[1742859966186,0.22749891,87306.0,87305.0,0.10071729]
[1742859967492,0.22749891,87306.0,87305.0,0.21524449]
[1742859967791,0.58829891,87306.0,87305.0,0.21524449]
[1742859970199,0.58829891,87306.0,87305.0,0.10071729]
[1742859971098,0.58829891,87306.0,87305.0,0.21524449]
[1742859971592,0.58829891,87306.0,87305.0,0.10071729]
[1742859971799,0.58829891,87306.0,87270.0,0.0178954]
[1742859971800,0.1145377,87297.0,87285.0,0.27441101]
[1742859971987,0.1152977,87297.0,87296.0,0.00085188]
[1742859972395,0.1797977,87297.0,87296.0,0.00085188]
[1742859972698,0.23225641,87297.0,87296.0,0.11539088]
[1742859973098,0.23325641,87297.0,87296.0,0.11539088]
[1742859973601,0.00176,87297.0,87296.0,0.23776408]
[1742859973998,0.00276,87297.0,87296.0,0.23776408]
[1742859974199,0.41,87301.0,87300.0,0.1145337]
[1742859974501,0.41072,87301.0,87300.0,0.6152537]
[1742859974890,0.5252524,87301.0,87300.0,0.6152537]
[1742859975091,0.5252524,87301.0,87300.0,0.6468537]
[1742859975293,0.5272524,87301.0,87300.0,0.6468537]
[1742859976000,0.5292524,87301.0,87300.0,0.3968537]
[1742859976195,0.41472,87301.0,87300.0,0.3968537]
[1742859976593,0.5292524,87301.0,87300.0,0.3968537]
[1742859977202,0.1192524,87301.0,87300.0,0.3968537]
[1742859977397,0.1192524,87301.0,87300.0,0.4292537]
[1742859980204,0.00472,87301.0,87300.0,0.4292537]
[1742859980408,0.00476,87301.0,87300.0,0.4292537]
[1742859981502,0.004,87301.0,87300.0,0.4292537]
[1742859981809,0.004,87301.0,87300.0,0.7900537]
[1742859982101,0.5325706,87316.0,87315.0,0.1145141]
[1742859982297,0.36148,87316.0,87315.0,0.3845141]
[1742859982496,0.1151928,87316.0,87315.0,0.4806941]
[1742859982707,0.1477128,87316.0,87315.0,0.4806941]
[1742859983103,0.1477128,87316.0,87315.0,0.5908941]
[1742859983497,0.1577128,87316.0,87315.0,0.5908941]
[1742859983698,0.1577128,87316.0,87315.0,0.3208941]
[1742859984207,0.1583928,87316.0,87315.0,0.3208941]
[1742859984600,0.1919928,87316.0,87315.0,0.3208941]
[1742859984810,0.1919928,87316.0,87315.0,0.33554048]
[1742859985211,0.1919928,87316.0,87315.0,0.34818826]
[1742859985898,0.07748,87316.0,87315.0,0.34818826]
[1742859986096,0.0432,87316.0,87315.0,0.43818826]
[1742859986703,0.01,87316.0,87315.0,0.43818826]
[1742859989404,0.0004,87320.0,87315.0,0.54818826]
[1742859989604,0.3608,87334.0,87319.0,0.3608]
[1742859989812,0.36148,87334.0,87333.0,0.1144905]
[1742859990004,0.36148,87334.0,87333.0,0.7254105]
[1742859990206,0.36148,87334.0,87333.0,0.7592105]
[1742859990510,0.00068,87334.0,87333.0,0.7592105]
[1742859990710,0.1144842,87338.0,87335.0,0.1144878]
[1742859991011,0.00108,87336.0,87335.0,1.00849807]
[1742859991212,0.00108,87336.0,87335.0,1.07449807]
[1742859992006,0.00108,87336.0,87335.0,1.03449807]
[1742859992202,0.0004,87336.0,87335.0,1.03449807]
[1742859999321,0.0004,87336.0,87335.0,0.91465807]
[1742860000222,0.0004,87336.0,87335.0,1.13465807]
[1742860000809,0.0004,87336.0,87335.0,0.91465807]
[1742860007527,0.0004,87336.0,87335.0,0.63255807]
[1742860007726,0.067,87336.0,87335.0,0.59865807]
[1742860007927,0.067,87336.0,87335.0,0.48849807]
[1742860008127,0.067,87336.0,87335.0,0.23785807]
[1742860008516,0.067,87336.0,87335.0,0.30405807]
[1742860009031,0.1814865,87336.0,87335.0,0.30405807]
[1742860009221,0.1821665,87336.0,87335.0,0.27085807]
[1742860009425,0.2139665,87336.0,87335.0,0.27085807]
[1742860009825,0.2139665,87336.0,87335.0,0.23785807]
[1742860010326,0.2139665,87336.0,87335.0,0.12337027]
[1742860011217,0.2139665,87336.0,87335.0,0.23785807]
[1742860012027,0.2139665,87336.0,87335.0,0.12337027]
[1742860013238,0.2139665,87336.0,87335.0,0.12333027]
[1742860014133,0.2139665,87336.0,87335.0,0.23781807]
[1742860015021,0.2139665,87336.0,87335.0,0.12769807]
[1742860015218,0.2139665,87336.0,87335.0,0.01321027]
[1742860015721,0.2139665,87336.0,87335.0,0.12769807]
[1742860016225,0.2139665,87336.0,87335.0,0.19299807]
[1742860018632,0.2139665,87336.0,87335.0,0.43299807]
[1742860019533,0.2139665,87336.0,87335.0,0.19299807]
[1742860020127,0.1799665,87336.0,87335.0,0.19299807]
[1742860021131,0.1799665,87336.0,87335.0,0.12769807]
[1742860022029,0.1799665,87336.0,87321.0,0.20575214]
[1742860022030,0.1144996,87326.0,87321.0,0.20575214]
[1742860022338,0.1151796,87326.0,87325.0,0.47152]
[1742860022637,0.1828796,87326.0,87325.0,0.2252209]
[1742860023023,0.1828796,87326.0,87325.0,0.0006]
[1742860023227,0.1828796,87326.0,87325.0,0.11072]
[1742860023433,0.2165796,87326.0,87325.0,0.12367783]
[1742860023728,0.23860494,87326.0,87325.0,0.12367783]
[1742860024133,0.23860494,87326.0,87325.0,0.23817873]
[1742860024333,0.23960494,87326.0,87325.0,0.12367783]
[1742860025433,0.23960494,87326.0,87325.0,0.01355783]
[1742860026929,0.0572531,87321.0,87318.0,0.11029178]
[1742860027135,0.1145088,87319.0,87318.0,0.02077178]
[1742860027335,0.1151888,87319.0,87318.0,0.02017178]
[1742860027534,0.21045828,87319.0,87318.0,0.02017178]
[1742860027730,0.21045828,87319.0,87318.0,0.02081178]
[1742860027930,0.21045828,87319.0,87318.0,0.02017178]
[1742860028532,0.21045828,87319.0,87318.0,0.02285178]
[1742860029138,0.21045828,87319.0,87318.0,0.02185178]
[1742860029435,0.21045828,87319.0,87318.0,0.02285178]